Cogmind - Beta 10.2 @@@ ROGUE MODE // 2021.10.23 @ 21:42:02 Player: Peace Result: Destroyed by G-47 Trooper with Particle Gun Performance ------------- Evolutions (2) 1000 Regions Visited (4) 800 Robots Destroyed (1) 5 Value Destroyed (1) 1 Prototype IDs (0) 0 Alien Tech Used (0) 0 Bonus (673) 673 TOTAL SCORE: 2479 Bonus ------- Pacifist 470 Follower Combat Kills 203 Cogmind --------- Core Integrity 0/550 Matter 300/300 Energy 99/100 System Corruption 0% Temperature Cool (9) Movement Core (50) Location -8/Materials Parts ------- > --- POWER (1) -------- (None) > --- PROPULSION (2) --- (None) > --- UTILITY (6) ------ (None) > --- WEAPON (2) ------- (None) > --- INVENTORY (4) ---- Drone Bay (2/2) Heavy Flail Powered Hammer Peak State ------------ > --- POWER ------------ (None) > --- PROPULSION ------- Flight Unit > --- UTILITY ---------- ECM Suite ECM Suite Drone Bay > --- WEAPON ----------- (None) > --- INVENTORY -------- (None) [Rating: 8] Favorites ----------- Power None Propulsion Flight Unit Flight Unit Flight Unit Utility ECM Suite Device ECM Suite Weapon None Build | -11 -10 -9 -9 -8 ------- Run | Scr Mat Mat Sto Mat Slots Evolved 4 | . . 2 . 2 Power . | . . . . . Propulsion . | . . . . . Utility 4 | . . 2 . 2 Weapon . | . . . . . Parts Attached 4 | . 3 . 1 . Power . | . . . . . Engine . | . . . . . Core . | . . . . . Reactor . | . . . . . Propulsion 1 | . 1 . . . Treads . | . . . . . Leg . | . . . . . Wheel . | . . . . . Hover . | . . . . . Flight 1 | . 1 . . . Utility 3 | . 2 . 1 . Device 3 | . 2 . 1 . Storage . | . . . . . Processor . | . . . . . Hackware . | . . . . . Protection . | . . . . . Artifact . | . . . . . Weapon . | . . . . . Energy Gun . | . . . . . Energy Cannon . | . . . . . Ballistic Gun . | . . . . . Ballistic Cannon . | . . . . . Launcher . | . . . . . Special Weapon . | . . . . . Impact Weapon . | . . . . . Slashing Weapon . | . . . . . Piercing Weapon . | . . . . . Special Melee Weapon . | . . . . . Unidentified Prototypes . | . . . . . Parts Lost 3 | . . . 1 2 Power . | . . . . . Propulsion 1 | . . . 1 . Utility 2 | . . . . 2 Weapon . | . . . . . Highest Loss Streak 2 | . . . 1 2 Average Slot Usage (%) 25 | . 22 33 33 9 Flight 5 | . 2 11 8 . Device 19 | . 19 22 24 9 Naked Turns 56 | . 11 . . 45 Heaviest Build 8 | . 2 2 8 2 Greatest Support 4 | 3 4 4 4 3 Greatest Overweight (x) 1 | . . . 1 . Average Overweight (x) . | . . . . . Largest Inventory Capacity 4 | 4 4 4 4 4 Average Capacity 4 | 4 4 4 4 4 Most Carried 3 | . . . 1 3 Average Carried . | . . . . 1 Final Capacity 4 | 4 4 4 4 4 Final Carried 3 | . . . 1 3 Class Distribution -------------------- 100% | Mutant Dominant Class ---------------- Mutant | -10/Materials Mutant | -9/Materials Mutant | -9/Storage Mutant | -8/Materials Resources | -11 -10 -9 -9 -8 ----------- Run | Scr Mat Mat Sto Mat Matter Collected 240 | 200 . . 40 . Remotely . | . . . . . Salvage Created 24 | . . . . 24 Parts 4 | . . . . 4 Haulers Intercepted . | . . . . . Recyclers Shooed . | . . . . . Parts Field Recycled . | . . . . . Retrieved Matter . | . . . . . Parts Self-Destructed . | . . . . . Prevented . | . . . . . Kills | -11 -10 -9 -9 -8 ------- Run | Scr Mat Mat Sto Mat Combat Hostiles Destroyed . | . . . . . Classes Destroyed 1 | . . . . 1 Worker 1 | . . . . 1 Best Kill Streak 1 | . . . . 1 Combat Bots Only . | . . . . . Max Kills in Single Turn 1 | . . . . 1 Gunslinging . | . . . . . Exploded . | . . . . . Melee . | . . . . . Uniques/NPCs Destroyed . | . . . . . Combat | -11 -10 -9 -9 -8 -------- Run | Scr Mat Mat Sto Mat Damage Taken 902 | . 96 30 170 606 Core 823 | . 84 30 149 560 Absorbed by Shields . | . . . . . Core Remaining (%) 73 | 100 66 . 55 . Volleys Fired . | . . . . . Largest . | . . . . . Hottest . | . . . . . Shots Fired . | . . . . . Gun . | . . . . . Cannon . | . . . . . Launcher . | . . . . . Special . | . . . . . Kinetic . | . . . . . Thermal . | . . . . . Explosive . | . . . . . Electromagnetic . | . . . . . Robot Hit Streak . | . . . . . Robot Miss Streak . | . . . . . Penetration Max . | . . . . . Secondary Targets . | . . . . . Shots Hit Robots . | . . . . . Core Hits 4 | . . . 1 3 Critical Hits . | . . . . . Critical Kills . | . . . . . Critical Parts Destroyed . | . . . . . Melee Attacks . | . . . . . Impact . | . . . . . Slashing . | . . . . . Piercing . | . . . . . Sneak Attacks . | . . . . . Combat Hostiles . | . . . . . Follow-up Attacks . | . . . . . Damage Inflicted 34 | . . . 14 20 Guns . | . . . . . Cannons . | . . . . . Explosions . | . . . . . Melee . | . . . . . Ramming 34 | . . . 14 20 Kinetic . | . . . . . Thermal . | . . . . . Explosive . | . . . . . Electromagnetic . | . . . . . Impact . | . . . . . Slashing . | . . . . . Piercing . | . . . . . Highest Corruption . | . . . . . Average Corruption . | . . . . . Corruption Purged . | . . . . . Overload Shots . | . . . . . Overflow Damage . | . . . . . Projectiles . | . . . . . Explosions . | . . . . . Melee . | . . . . . Knockbacks . | . . . . . Impact . | . . . . . Kinetic . | . . . . . Secondary . | . . . . . Self-Inflicted Damage 16 | . . . 7 9 Shots . | . . . . . Rammed 4 | . . . 1 3 Targets Rammed 4 | . . . 1 3 Kicked . | . . . . . Crushed . | . . . . . Highest Temperature 5 | . . . . 5 Average Temperature 5 | . . . . 5 Received Heat Transfer 354 | . 51 . 42 261 Siege Activations . | . . . . . Robots Corrupted . | . . . . . Combat Hostiles . | . . . . . Parts Fried . | . . . . . Impact Corruptions . | . . . . . Robots Melted . | . . . . . Combat Hostiles . | . . . . . Parts Melted . | . . . . . Heat Transferred . | . . . . . Parts Sabotaged . | . . . . . Parts Stolen . | . . . . . Parts Stripped . | . . . . . Power Chain Reactions . | . . . . . Missiles Intercepted . | . . . . . Alert | -11 -10 -9 -9 -8 ------- Run | Scr Mat Mat Sto Mat Peak Influence 229 | . 30 27 229 134 Initial 89 | . . 12 11 89 Average 99 | . 6 16 136 115 Maximum Alert Level 1 | . . . 1 . Low Security (%) 86 | 100 100 100 73 100 Level 1 13 | . . . 26 . Level 2 . | . . . . . Level 3 . | . . . . . Level 4 . | . . . . . Level 5 . | . . . . . High Security . | . . . . . Max Security . | . . . . . Squads Dispatched 7 | . 2 . 4 1 Investigation 2 | . . . 2 . Extermination . | . . . . . Reinforcement 3 | . 2 . . 1 Assault 2 | . . . 2 . Garrison . | . . . . . Intercept . | . . . . . Construction Impeded . | . . . . . Haulers Reinforced . | . . . . . Stealth | -11 -10 -9 -9 -8 --------- Run | Scr Mat Mat Sto Mat Distress Signals 2 | . . . 2 . Communications Jammed . | . . . . . Distress Signals . | . . . . . Times Spotted 37 | . 10 1 17 9 Peak Tracking Total 12 | . 9 1 12 9 Tactical Retreats 2 | . . . 2 . Traps | -11 -10 -9 -9 -8 ------- Run | Scr Mat Mat Sto Mat Traps Triggered . | . . . . . Indirectly . | . . . . . Trap Hack Attempts . | . . . . . Triggered . | . . . . . Disarmed . | . . . . . Reprogrammed . | . . . . . Reused . | . . . . . Traps Extracted . | . . . . . Installed . | . . . . . Triggered . | . . . . . Machines | -11 -10 -9 -9 -8 ---------- Run | Scr Mat Mat Sto Mat Machines Disabled . | . . . . . Max in Single Turn . | . . . . . Machines Sabotaged . | . . . . . Garrisons Compromised . | . . . . . Overloaded Fab Kills . | . . . . . Fab Network Shutdowns . | . . . . . Hacking | -11 -10 -9 -9 -8 --------- Run | Scr Mat Mat Sto Mat Machines Accessed 4 | . . . 4 . Terminals 4 | . . . 4 . Fabricators . | . . . . . Repair Stations . | . . . . . Recycling Units . | . . . . . Scanalyzers . | . . . . . Garrison Access . | . . . . . Total Hacks 6 | . . . 6 . Successful 3 | . . . 3 . Failed 3 | . . . 3 . Catastrophic 1 | . . . 1 . Database Lockouts . | . . . . . Manual 2 | . . . 2 . Terminals 6 | . . . 6 . Fabricators . | . . . . . Repair Stations . | . . . . . Recycling Units . | . . . . . Scanalyzers . | . . . . . Garrison Access . | . . . . . Terminal Hacks 3 | . . . 3 . Open Door 2 | . . . 2 . Level Access Points 1 | . . . 1 . Fabricator Hacks . | . . . . . Repair Station Hacks . | . . . . . Recycling Unit Hacks . | . . . . . Scanalyzer . | . . . . . Garrison Access Hacks . | . . . . . Unauthorized Hacks . | . . . . . Terminals . | . . . . . Fabricators . | . . . . . Repair Stations . | . . . . . Recycling Units . | . . . . . Scanalyzers . | . . . . . Garrison Access . | . . . . . Data Cores Recovered . | . . . . . Used . | . . . . . Hacking Detections 2 | . . . 2 . Full Trace Events 1 | . . . 1 . Feedback Events . | . . . . . Feedback Blocked . | . . . . . Robot Schematics Acquired . | . . . . . Robots Built . | . . . . . Matter . | . . . . . Time . | . . . . . Total Robot Build Rating . | . . . . . Part Schematics Acquired . | . . . . . Parts Built . | . . . . . Matter . | . . . . . Time . | . . . . . Total Part Build Rating . | . . . . . Parts Repaired . | . . . . . Time . | . . . . . Parts Recycled . | . . . . . Recycled Matter . | . . . . . Retrieved Matter . | . . . . . Retrieved Components . | . . . . . Parts Scanalyzed . | . . . . . Part Schematics Acquired . | . . . . . Parts Damaged . | . . . . . Bothacking | -11 -10 -9 -9 -8 ------------ Run | Scr Mat Mat Sto Mat Used RIF Installer . | . . . . . Robots Hacked . | . . . . . Non-combat . | . . . . . Combat . | . . . . . Robot Hacks Applied . | . . . . . Relay Couplers Released . | . . . . . Robots Rewired . | . . . . . Allies Hacked . | . . . . . Hacks Repelled . | . . . . . Allies | -11 -10 -9 -9 -8 -------- Run | Scr Mat Mat Sto Mat Total Allies 2 | . . . 2 . Largest Group 2 | . . . 2 . Highest-Rated Group 62 | . . . 62 . Highest-Rated Ally 31 | . . . 31 . Total Orders 1 | . . . 1 . EXPLORE 1 | . . . 1 . Ally Attacks 23 | . . . 23 . Total Damage 416 | . . . 416 . Kills 7 | . . . 7 . Allies Corrupted 1 | . . . 1 . Allies Melted . | . . . . . Intel | -11 -10 -9 -9 -8 ------- Run | Scr Mat Mat Sto Mat Robot Analysis Total . | . . . . . Derelict Logs Recovered . | . . . . . Drone Launches 16 | . . . 16 . Drone Recoveries 2 | . . . 2 . Exploration | -11 -10 -9 -9 -8 ------------- Run | Scr Mat Mat Sto Mat Turns Passed 326 | 14 51 16 160 85 Spaces Moved 592 | 27 85 41 280 159 Core 301 | 27 63 . 52 159 Treads . | . . . . . Legs . | . . . . . Wheels . | . . . . . Hover . | . . . . . Flight 291 | . 22 41 228 . Fastest Speed 40 | 50 40 40 40 50 Average Speed 46 | 50 47 40 44 50 Slowest Speed 120 | 50 50 40 120 50 Overloaded Moves . | . . . . . Propulsion Burnouts . | . . . . . Robots Hopped 8 | . 1 2 5 . Cave-ins Triggered . | . . . . . Exploration Rate (%) 24 | 3 30 8 57 22 Regions Visited 4 Branch Regions 1 Pre-discovered Areas . | . . . . . Known Exits Taken 1 | . . . 1 . Unknown Exits Taken 3 | 1 1 1 . . Scrap Searched . | . . . . . Spaces Dug . | . . . . . Terrain Destroyed . | . . . . . Melee . | . . . . . Projectile . | . . . . . AOE . | . . . . . Terrain Rammed . | . . . . . Walls Destroyed . | . . . . . Machines Disabled . | . . . . . Actions | -11 -10 -9 -9 -8 --------- Run | Scr Mat Mat Sto Mat Total 631 | 26 92 38 311 164 Wait 33 | . 6 . 27 . Move 575 | 26 82 37 271 159 Hop 6 | . 1 1 4 . Pick Up 2 | . . . . 2 Fast Attach 4 | . 3 . 1 . Attach . | . . . . . Detach 1 | . . . 1 . Swap . | . . . . . Drop . | . . . . . Fire . | . . . . . Melee . | . . . . . Ram 3 | . . . . 3 Kick . | . . . . . Crush . | . . . . . Escape Stasis . | . . . . . Rewire . | . . . . . Trap . | . . . . . Miscellaneous 7 | . . . 7 . Route ------- -11/Scrapyard -10/Materials -9/Materials -9/Storage -8/Materials History --------- Turn | Location | Event 3 | -11/Scrapyard | Discovered new exit (range 15) 15 | -11/Scrapyard | Entered Materials 60 | -10/Materials | Discovered new exit (range 15) 66 | -10/Materials | Entered another Materials area 66 | -9/Materials | Evolved 2 slots: Utility x2 77 | -9/Materials | Discovered new exit (range 14) 82 | -9/Materials | Entered Storage 91 | -9/Storage | Identified exit to Materials 115 | -9/Storage | Met a pair of Derelict thieves 242 | -9/Storage | Entered Materials 242 | -8/Materials | Evolved 2 slots: Utility x2 304 | -8/Materials | Build established: Mutant 319 | -8/Materials | Core integrity fell below 50% 325 | -8/Materials | Core integrity fell below 20% 327 | -8/Materials | Destroyed by G-47 Trooper with Particle Gun Last Messages --------------- GOAL=ESCAPE 00268_ K-01 Serf collects debris. 00280_ ECM Suite destroyed. 00280_ Slammed into K-01 Serf. 00280_ K-01 Serf destroyed. 00280_ Destabilizing: Core damaged (-27). 00282_ ECM Suite destroyed. 00290_ K-01 Serf collects debris. 00291_ Slammed into Y-45 Defender. 00295_ O-16 Technician: "IFF HANDSHAKE FAILED. SECURING TERMINAL." 00298_ K-01 Serf collects debris. 00299_ Slammed into O-16 Technician. 00300_ O-16 Technician uses terminal to summon reinforcements. 00300_ ALERT: Hostiles spotted, dispatching reinforcements to Terminal M003. 00300_ O-16 Technician locks terminal. 00303_ K-01 Serf collects debris. 00305_ Acquired Hvy. Flail. 00315_ Acquired Powered Hammer. 00321_ K-01 Serf destroyed. Map ----- +----------------------------------------------------+ | ????????????????????????????????? | | ????????????????????????????????? | | ????????????????????????????????? | | ????????????????????########????? | | ????????????????????#[[ /!!#????? | | ????????????????????#[[//!!#????? | | ????????????????????# %= #????? | | ????????????????????### ##???? | | ?????????############## #???? | | ?????????# # #???? | | ?????????# " """ # #???? | | ?????????# T """ + #???? | | ?????????# " """ # #???? | | ?????????# ! # #???? | | ?????????############## #???? | | ????????????# ?# #???? | | ????????????# # #???? | | ????????????# # gYg #???? | | ????????????# [ og #???? | | ????????????# """ #% #???? | | ????????????? """ # #???? | | ????????????? """ "T"?# #???? | | ????????????? """?# gg #???? | | ?????????????#######??# #???? | | ??????????????????????# #???? | | ??????????????????????# @ #???? | | ????????###########???# #???? | | ????????# ] #???# #???? | | ????????# #??## Y ##??? | | ????????# #??# #??? | | ????????# ! #??# #??? | | ????????# #### #??? | | ????????# + % #??? | | ????????# [ [ #### #??? | | ????????# #??# #??? | | ??###########/#####??# #??? | | ??# # #?????### ###??? | | ??# !!! # #???????# #????? | | ??# !!! + #???????# #????? | | ??#! !!! ] # ######### #????? | | ??# # ## ## #????? | | ??########?# #????? | | ????????#### #????? | | ? #????? | | ???############## #### #????? | | ????????????????## #####+##???? | | ?????????????????# =#* #???? | | ?????????????????# !/% #???? | | ?????????????????# =# #???? | | ?????????????????# # #???? | +----------------------------------------------------+ Best States ------------- Heat Dissipation 31 Energy Generation 5 Energy Capacity 100 Matter Stores 300 Matter Capacity 300 Sight Range 16 Terrain Scan Density 10 ECM Strength 1 Evasion (%) 62 Item Schematics ----------------- None Robot Schematics ------------------ None Fabricated ------------ Nothing Alien Tech Used ----------------- None Achievements -------------- None Challenges ------------ None Game ------ Seed BiomechanicalLatentPlating Manual? 0 Play Time 00:06:49 Cumulative 75.1 hours Start 2021.10.23 @ 21:36:48 End 2021.10.23 @ 21:42:02 Sessions 1 Manual Loads 0 Difficulty Rogue Special Mode None Game No. 101 Rogue 101 Adventurer 0 Explorer 0 Win Type - Total 0 Types 0/0/0/0/0/0/0/0/0 Lore% 38 Gallery% 55 Achievement% 37 Wizard Run 0 Options --------- ASCII 0 Keyboard 1 Movement Vi Keybinds 0 Fullscreen 1 Font 18/SmallcapsGlow Map View 76x50 Tactical HUD 1 Map Filters NONE Filters NONE Steam 1 RUN: de3361cb-f885-49ff-97f4-3fb07a1ca201